bitfinex/quotes_SOLUSD_20250728
["timestamp","ask_amount","ask_price","bid_price","bid_amount"]
[1753712736425,31.06027264,188.05,187.95,1.83332314]
[1753712736426,9.83002688,188.05,188.01,0.66]
[1753712736609,9.83002688,188.05,188.02,0.66]
[1753712736815,31.06037459,188.05,187.99,0.66]
[1753712737035,9.83002688,188.05,188.01,15.91247497]
[1753712737209,15.91247497,188.02,187.96,0.94432314]
[1753712737409,9.83002688,188.05,188.02,0.28432314]
[1753712737613,9.83002688,188.05,188.03,0.66]
[1753712737849,9.83002688,188.05,187.97,42.78468397]
[1753712737850,15.91247497,188.04,187.99,16.57247497]
[1753712738023,15.91247497,188.02,187.97,45.02]
[1753712738339,15.91247497,187.98,187.91,0.66]
[1753712738637,5.32022457,187.97,187.93,15.91247497]
[1753712738822,15.91247497,187.99,187.93,0.66]
[1753712739019,5.31914893,188.0,187.88,7.9214]
[1753712739020,15.91247497,187.95,187.88,7.9214]
[1753712739335,18.61702127,188.0,187.91,15.91247497]
[1753712739336,15.91247497,187.96,187.91,15.91247497]
[1753712739544,19.28702127,188.0,187.91,0.66]
[1753712739712,19.28702127,188.0,187.92,15.91247497]
[1753712740031,15.91247497,187.96,187.91,16.57247497]
[1753712740432,19.28702127,188.0,187.91,0.66]
[1753712740626,15.91247497,187.96,187.91,0.66]
[1753712740823,21.2329666,187.96,187.91,16.57247497]
[1753712741022,0.67,187.95,187.89,0.14216157]
[1753712741224,5.32049163,187.96,187.89,0.28432314]
[1753712741416,15.91247497,187.94,187.89,16.19679811]
[1753712741732,15.91247497,187.93,187.88,23.83387497]
[1753712741932,15.91247497,187.93,187.88,8.5814]
[1753712742149,18.6211939,187.96,187.84,0.66]
[1753712742150,15.91247497,187.89,187.84,0.66]
[1753712742325,15.91247497,187.88,187.84,0.66]
[1753712742535,0.67,187.92,187.84,0.66]
[1753712742740,21.23466627,187.9,187.85,15.91247497]
[1753712742934,5.3221913,187.9,187.86,0.66]
[1753712743136,15.91247497,187.89,187.83,15.91247497]
[1753712743445,5.3221913,187.9,187.82,0.86]
[1753712743621,21.23466627,187.9,187.84,15.91247497]
[1753712743940,5.32141336,187.92,187.82,0.2]
[1753712744143,15.91247497,187.87,187.82,16.11247497]
[1753712744360,15.91247497,187.87,187.83,0.66]
[1753712744517,19.29494677,187.92,187.83,0.66]
[1753712744717,19.29494677,187.92,187.83,16.57247497]
[1753712744952,15.91247497,187.89,187.83,0.66]
[1753712745252,19.29494677,187.92,187.83,0.66]
[1753712745430,15.91247497,187.91,187.86,15.91247497]
[1753712745626,5.32141336,187.92,187.83,0.66]
[1753712745830,21.23388833,187.92,187.86,0.66]
[1753712746025,15.91247497,187.9,187.82,0.2]
[1753712746230,15.91247497,187.87,187.82,0.2]
[1753712746535,16.58247497,187.86,187.82,0.2]
[1753712746729,5.32367972,187.84,187.82,0.2]
[1753712747419,21.23615469,187.84,187.82,0.2]
[1753712747618,15.91247497,187.83,187.82,0.2]
[1753712747816,21.23615469,187.84,187.82,0.2]
[1753712748054,21.23583275,187.86,187.82,0.2]
[1753712748225,15.91247497,187.84,187.82,0.2]
[1753712748422,15.91247497,187.83,187.82,0.2]
[1753712749152,16.58247497,187.83,187.74,0.66]
[1753712749363,0.67,187.83,187.72,8.6393]
[1753712749527,15.91247497,187.8,187.72,8.6393]
[1753712749846,0.67,187.83,187.76,15.91247497]
[1753712750044,15.91247497,187.79,187.72,8.6393]
[1753712750346,15.91247497,187.76,187.7,15.91247497]
[1753712750544,15.91247497,187.81,187.75,15.91247497]
[1753712750845,5.32453011,187.81,187.78,15.91247497]
[1753712751021,5.32453011,187.81,187.77,15.91247497]
[1753712751223,15.91247497,187.78,187.69,0.66]
[1753712751462,5.32453011,187.81,187.67,38.34]
[1753712751463,15.91247497,187.76,187.67,38.34]
[1753712751625,16.58247497,187.77,187.71,15.91247497]
[1753712751830,15.91247497,187.78,187.69,0.66]
[1753712752025,15.91247497,187.77,187.69,0.66]
[1753712752245,15.91247497,187.75,187.65,2.2164]
[1753712752477,15.91247497,187.74,187.65,2.2164]
[1753712752762,5.32708288,187.72,187.65,1.5564]
[1753712753187,0.67,187.71,187.6,6.1239]
[1753712753488,5.99623169,187.75,187.7,15.91247497]
[1753712753634,5.32623169,187.75,187.62,16.92684554]
[1753712753838,5.99623169,187.75,187.65,0.66]
[1753712754038,5.99623169,187.75,187.62,17.58684554]
[1753712754039,0.67,187.74,187.62,17.58684554]
[1753712754264,16.58247497,187.74,187.63,0.80216157]
[1753712754477,0.52,187.73,187.63,0.14216157]
[1753712754636,5.32623169,187.75,187.63,0.80216157]
[1753712754842,5.32594801,187.76,187.65,0.14216157]
[1753712755048,5.32594801,187.76,187.66,0.66]
[1753712755558,5.32594801,187.76,187.68,15.91247497]
[1753712755865,22.56978172,187.76,187.68,15.91247497]
[1753712756125,22.56978172,187.76,187.62,0.14216157]
[1753712756126,3.92896367,187.75,187.67,15.91247497]
[1753712756250,3.92896367,187.75,187.65,0.66]
[1753712756568,0.52,187.74,187.64,0.80216157]
[1753712756878,5.32679912,187.73,187.64,6.13146902]
[1753712757072,8.73547595,187.75,187.69,15.91247497]
[1753712757245,15.91247497,187.73,187.67,16.57247497]
[1753712757590,5.84651228,187.75,187.61,0.06]
[1753712757891,15.91247497,187.69,187.63,15.91247497]
[1753712758093,0.52,187.72,187.64,15.91247497]
[1753712758377,0.52,187.72,187.61,0.06]
[1753712758378,15.91247497,187.68,187.61,0.06]
[1753712758542,0.52,187.68,187.61,0.06]
[1753712758750,15.91247497,187.65,187.61,0.06]
[1753712758970,0.52,187.64,187.61,0.06]
[1753712759181,19.16975754,187.67,187.61,0.06]
[1753712759383,15.91247497,187.65,187.61,0.06]
[1753712759680,5.32850215,187.67,187.62,15.91247497]
[1753712759856,0.67,187.66,187.61,0.06]
[1753712760058,0.67,187.65,187.61,15.97247497]
[1753712760383,0.67,187.65,187.61,0.06]
[1753712760586,15.91247497,187.62,187.61,0.06]
[1753712760763,5.32963811,187.63,187.61,0.06]
[1753712761104,21.96211308,187.63,187.61,0.06]
[1753712761289,13.32125539,187.67,187.61,0.06]
[1753712761446,15.91247497,187.64,187.61,0.06]
[1753712761647,15.91247497,187.62,187.61,0.06]
[1753712762078,0.72,187.65,187.61,0.06]
[1753712762249,15.91247497,187.62,187.61,1e-08]
[1753712762791,21.96239715,187.62,187.61,1e-08]
[1753712762954,38.68475744,187.62,187.54,15.91247497]
[1753712763158,4.11755484,187.61,187.48,0.71]
[1753712763375,15.91247497,187.59,187.53,15.91247497]
[1753712763552,15.91247497,187.57,187.52,15.91247497]
[1753712763758,16.63247497,187.56,187.47,6.5934]
[1753712764180,0.72,187.56,187.45,0.71]
[1753712764599,0.72,187.56,187.46,5.33444929]
[1753712764878,5.33134296,187.57,187.53,15.91247497]
[1753712765083,0.72,187.58,187.53,15.91247497]
[1753712765283,5.32992218,187.62,187.57,15.91247497]
[1753712765452,5.32992218,187.62,187.61,15.91247497]
[1753712765653,6.04992218,187.62,187.54,0.71]
[1753712766065,6.04992218,187.62,187.52,0.28432314]
[1753712766066,0.72,187.61,187.52,0.28432314]
[1753712766276,0.72,187.61,187.5,0.71]
[1753712766653,16.63247497,187.61,187.5,0.71]
[1753712766857,5.32935408,187.64,187.6,15.91247497]
[1753712767055,5.32935408,187.64,187.55,0.99432314]
[1753712767485,0.72,187.63,187.6,15.91247497]
[1753712767797,5.32935408,187.64,187.62,15.91247497]
[1753712767996,5.32910735,187.65,187.63,15.91247497]
[1753712768294,5.3276505,187.7,187.64,16.62247497]
[1753712768475,21.24012547,187.7,187.6,0.71]
[1753712768669,0.72,187.69,187.64,15.91247497]
[1753712768868,0.72,187.69,187.6,0.71]
[1753712768869,5.32793435,187.69,187.65,15.91247497]
[1753712769107,32.16022992,187.72,187.61,0.28432314]
[1753712769279,3.75543681,187.71,187.68,15.91247497]
[1753712769594,9.08280349,187.71,187.69,15.91247497]
[1753712769822,6.04736668,187.71,187.68,15.91247497]
[1753712770094,0.72,187.7,187.63,0.71]
[1753712770298,4.47430594,187.7,187.6,0.71]
[1753712770601,34.17267654,187.72,187.6,0.99432314]
[1753712770897,18.64677676,187.7,187.62,15.91247497]
[1753712771078,15.91247497,187.67,187.57,0.71]
[1753712771281,15.91247497,187.67,187.62,15.91247497]
[1753712771482,15.91247497,187.67,187.57,0.71]
[1753712771483,16.63247497,187.66,187.61,15.91247497]
[1753712771684,0.72,187.65,187.53,6.2699]
[1753712772000,26.72,187.65,187.52,0.71]
[1753712772173,0.72,187.64,187.52,0.71]
[1753712772377,0.72,187.64,187.55,15.91247497]
[1753712772573,15.91247497,187.61,187.5,1.5045]
[1753712772800,15.91247497,187.57,187.52,15.91247497]
[1753712772999,6.05162721,187.56,187.52,15.91247497]
[1753712773198,6.05162721,187.56,187.53,15.91247497]
[1753712773401,5.33162721,187.56,187.54,15.91247497]
[1753712773605,0.72,187.63,187.55,15.91247497]
[1753712773901,0.72,187.63,187.54,0.71]
[1753712773902,0.72,187.63,187.57,15.91247497]
[1753712774102,15.91247497,187.62,187.57,15.91247497]
[1753712774294,16.63247497,187.62,187.57,15.91247497]
[1753712774603,54.4287861,187.66,187.61,15.91247497]
[1753712774785,15.91247497,187.63,187.51,0.28432314]
[1753712774993,15.91247497,187.61,187.56,15.91247497]
[1753712775195,0.72,187.6,187.55,15.91247497]
[1753712775713,0.72,187.6,187.56,15.91247497]
[1753712776006,0.72,187.6,187.51,0.71]
[1753712776188,0.72,187.6,187.53,15.91247497]
[1753712776389,0.72,187.6,187.54,15.91247497]
[1753712776633,0.72,187.6,187.55,15.91247497]
[1753712776992,5.33077456,187.59,187.51,6.04293065]
[1753712777416,5.33077456,187.59,187.55,15.91247497]
[1753712777582,5.33077456,187.59,187.54,15.91247497]
[1753712777782,5.33077456,187.59,187.53,15.91247497]
[1753712777783,21.24324953,187.59,187.53,15.91247497]
[1753712777983,21.24324953,187.59,187.52,16.62247497]
[1753712777984,15.91247497,187.57,187.52,16.62247497]
[1753712778182,18.65771096,187.59,187.52,0.71]
[1753712778498,18.65771096,187.59,187.53,15.91247497]
[1753712778881,5.33134296,187.57,187.53,15.91247497]
[1753712779409,0.72,187.56,187.49,0.71]
[1753712779591,21.24381793,187.57,187.51,15.91247497]
[1753712779784,21.24324953,187.59,187.52,0.71]
[1753712779987,5.33077456,187.59,187.52,0.71]
[1753712780186,0.72,187.67,187.52,0.71]
[1753712780418,13.31983589,187.69,187.57,15.91247497]
[1753712780419,15.91247497,187.62,187.57,15.91247497]
[1753712780620,15.91247497,187.64,187.59,15.91247497]
[1753712780783,11.23565502,187.66,187.59,0.71]
[1753712780983,10.51565502,187.67,187.6,0.71]
[1753712781182,10.51565502,187.62,187.57,10.51565502]
[1753712781485,10.51565502,187.6,187.53,0.71]
[1753712781692,10.51565502,187.59,187.5,0.71]
[1753712781899,0.72,187.61,187.5,0.71]
[1753712782098,0.72,187.61,187.54,10.51565502]
[1753712782634,0.72,187.61,187.53,10.51565502]
[1753712782840,0.72,187.61,187.48,10.51565502]
[1753712782841,10.51565502,187.54,187.48,10.51565502]
[1753712783141,26.0,187.47,187.29,9.5703236]
[1753712783353,2.78493581,187.36,187.3,16.09272919]
[1753712783512,2.78493581,187.36,187.34,37.87528631]
[1753712783808,2.78493581,187.36,187.35,0.2]
[1753712784428,2.78493581,187.36,187.35,17.00272919]
[1753712784823,2.06493581,187.36,187.35,17.53648953]
[1753712785022,0.98493581,187.36,187.35,73.70863848]
[1753712785230,0.72,187.51,187.35,73.70863848]
[1753712785231,16.09272919,187.5,187.36,17.06900711]
[1753712785416,16.09272919,187.5,187.44,16.09272919]
[1753712785614,16.09272919,187.47,187.39,0.28432314]
[1753712785910,16.09272919,187.44,187.35,13.58746498]
[1753712786123,5.33318773,187.51,187.43,16.09272919]
[1753712786433,16.81272919,187.55,187.44,0.28432314]
[1753712786741,16.09272919,187.56,187.5,16.09272919]
[1753712787045,5.33283476,187.52,187.46,16.09272919]
[1753712787410,0.72,187.55,187.47,16.09272919]
[1753712787612,19.456562,187.59,187.53,16.09272919]
[1753712787817,7.12328265,187.58,187.54,16.09272919]
[1753712788057,3.75944984,187.57,187.47,0.28432314]
[1753712788224,16.81272919,187.6,187.47,0.28432314]
[1753712788225,3.75944984,187.56,187.54,16.09272919]
[1753712788428,3.36258147,187.63,187.55,16.09272919]
[1753712788622,3.76072834,187.62,187.59,16.09272919]
[1753712788822,3.76072834,187.61,187.59,16.09272919]
[1753712789161,3.76072834,187.6,187.54,0.28432314]
[1753712789451,3.36258147,187.67,187.59,16.09272919]
[1753712789648,3.76306687,187.65,187.59,16.09272919]
[1753712789842,3.76306687,187.64,187.61,0.28432314]
[1753712790063,4.22967547,187.73,187.62,0.53299221]
[1753712790272,3.76225015,187.65,187.59,48.08]
[1753712790452,3.76225015,187.64,187.59,48.08]
[1753712790773,3.76225015,187.63,187.57,17.06900711]
[1753712790938,21.42055387,187.7,187.62,21.42254451]
[1753712791135,0.03,187.74,187.65,16.09272919]
[1753712791353,3.80104149,187.66,187.65,16.09272919]
[1753712791963,3.80104149,187.66,187.65,33.1617363]
[1753712792134,0.03,187.74,187.66,17.06900711]
[1753712792328,3.77187166,187.73,187.67,0.53285021]
[1753712792537,3.77187166,187.72,187.71,16.09272919]
[1753712792748,3.77187166,187.72,187.66,6.5837]
[1753712792749,3.77187166,187.72,187.67,26.28432314]
[1753712792954,3.77187166,187.71,187.68,16.78468397]
[1753712793154,0.03,187.74,187.68,16.78468397]
[1753712793155,3.37314131,187.84,187.73,43.06900711]
[1753712793340,0.1,187.85,187.77,26.0]
[1753712793341,9.44522071,187.83,187.77,26.0]
[1753712793716,0.1,187.85,187.78,0.28432314]
[1753712793717,3.7780903,187.82,187.78,0.28432314]
[1753712793848,3.7780903,187.81,187.78,0.28432314]
[1753712794042,0.1,187.85,187.81,0.28432314]
[1753712794358,0.1,187.85,187.84,16.09272919]
[1753712794545,3.88060674,187.85,187.84,16.09272919]
[1753712795348,0.77,187.85,187.81,16.09272919]
[1753712795549,3.78060674,187.84,187.78,0.28432314]
[1753712795744,2.11400674,187.84,187.83,32.18545838]
[1753712795947,0.03,187.92,187.86,26.0]
[1753712796167,0.03,187.92,187.91,16.09272919]
[1753712796466,0.03,187.92,187.91,16.62489884]
[1753712797063,0.03,187.92,187.91,21.94659539]
[1753712797265,7.60281678,187.99,187.91,22.23091853]
[1753712797482,4.22967547,187.98,187.95,32.18545838]
[1753712797686,4.22967547,187.99,187.95,33.00183791]
[1753712797862,0.03,188.0,187.98,32.18545838]
[1753712798060,0.03,188.0,187.99,16.09272919]
[1753712798366,8.45935094,188.12,187.99,16.09272919]
[1753712798367,4.22967547,188.07,188.02,26.0]
[1753712798569,4.22967547,188.1,188.06,16.09272919]
[1753712798768,4.22967547,188.1,188.09,16.09272919]
[1753712798971,3.77346224,188.1,188.09,16.09272919]
[1753712799189,4.89967547,188.1,188.02,0.53185831]
[1753712799360,21.74412144,188.09,187.98,69.15223212]
[1753712799558,13.92276889,188.08,187.93,6.0816]
[1753712799880,16.78468397,188.06,187.99,16.09272919]
[1753712800100,4.22967547,188.08,187.93,47.74]
[1753712800101,16.09272919,188.01,187.93,47.74]
[1753712800261,9.69309342,188.0,187.97,16.09272919]
[1753712800460,3.37314131,188.02,187.99,16.09272919]
[1753712800659,5.64383028,188.01,188.0,26.53191489]
[1753712800876,3.37314131,188.06,188.0,42.62464408]
[1753712801161,5.31545374,188.14,188.06,31.31745187]
[1753712801162,7.60281678,188.14,188.06,31.31745187]
[1753712801388,0.03,188.15,188.06,31.31745187]
[1753712801389,0.03,188.15,188.13,16.09272919]
[1753712801689,0.03,188.15,188.14,16.09272919]
[1753712802275,16.81468397,188.15,188.14,16.09272919]
[1753712802477,16.78468397,188.13,188.03,6.1621]
[1753712802786,16.78468397,188.11,188.08,16.09272919]
[1753712803094,22.1014755,188.09,188.04,16.09272919]
[1753712803266,16.78468397,188.07,187.97,47.62]
[1753712803586,0.67,188.06,188.04,16.09272919]
[1753712803791,16.78468397,188.06,188.05,16.09272919]
[1753712803993,16.78468397,188.05,187.94,6.6213]
[1753712804198,16.78468397,188.03,187.99,16.09272919]
[1753712804374,16.78468397,188.01,187.94,5.32082945]
[1753712804566,16.78468397,187.99,187.96,16.09272919]
[1753712804759,16.78468397,188.01,187.98,16.09272919]
[1753712804997,16.78468397,188.01,188.0,16.09272919]
[1753712805288,16.78468397,188.05,188.0,16.09272919]
[1753712805478,16.78468397,188.03,188.02,16.09272919]
[1753712805870,16.78468397,188.05,188.02,16.09272919]
[1753712806203,16.78468397,188.03,187.94,26.0]
[1753712806487,16.78468397,188.01,187.98,16.09272919]
[1753712806696,0.67,188.0,187.98,16.09272919]
[1753712807001,0.67,187.99,187.92,5.85331717]
[1753712807293,0.67,187.99,187.94,16.09272919]
[1753712807500,16.09272919,187.95,187.84,47.52]
[1753712807668,0.67,187.94,187.86,16.09272919]
[1753712807866,0.67,187.94,187.79,18.63784013]
[1753712807867,16.78468397,187.9,187.89,16.09272919]
[1753712808070,16.78468397,187.93,187.89,16.09272919]
[1753712808262,16.78468397,187.91,187.87,16.09272919]
[1753712808469,0.67,187.9,187.86,16.09272919]
[1753712808670,82.23175011,187.98,187.79,5.32509718]
[1753712808671,17.45468397,187.93,187.88,16.09272919]
[1753712808901,17.45468397,187.93,187.9,16.09272919]
[1753712809404,0.67,187.97,187.92,16.09272919]
[1753712809688,16.78468397,187.96,187.94,16.09272919]
[1753712810196,16.78468397,188.0,187.95,16.09272919]
[1753712810377,0.14216157,188.05,187.99,16.09272919]
[1753712810378,5.31801127,188.05,187.99,16.09272919]
[1753712810568,5.31801127,188.05,187.89,26.5322263]
[1753712810569,0.03,188.15,188.04,16.09272919]
[1753712810773,0.03,188.15,187.98,16.09272919]
[1753712810774,0.67,188.08,188.05,16.09272919]
[1753712810975,0.67,188.08,187.98,16.62470067]
[1753712810976,0.67,188.08,188.07,16.09272919]
[1753712811280,5.3157559,188.12,188.07,16.09272919]
[1753712811281,0.67,188.12,188.07,16.09272919]
[1753712811597,0.67,188.11,188.08,16.09272919]
[1753712811801,16.78468397,188.11,188.1,16.09272919]
[1753712811981,0.67,188.14,188.1,16.09272919]
[1753712812179,0.67,188.14,188.12,16.09272919]
[1753712812371,0.03,188.15,188.13,16.09272919]
[1753712812575,0.03,188.15,188.14,16.09272919]
[1753712814008,16.78468397,188.14,188.04,5.31801744]
[1753712814304,16.78468397,188.14,188.1,16.09272919]
[1753712814500,0.67,188.14,188.11,16.09272919]
[1753712814680,0.67,188.14,188.12,16.09272919]
[1753712814874,0.67,188.14,188.04,31.31801744]
[1753712814875,17.45468397,188.14,188.04,31.31801744]
[1753712815109,0.67,188.14,188.04,31.31801744]
[1753712815318,16.78468397,188.11,188.06,16.09272919]
[1753712815480,16.78468397,188.11,188.1,16.09272919]
[1753712815684,16.78468397,188.12,188.09,16.09272919]
[1753712815894,16.78468397,188.13,188.09,16.09272919]
[1753712816238,16.78468397,188.11,188.04,31.31792618]
[1753712816503,16.78468397,188.14,188.1,16.09272919]
[1753712816805,16.78468397,188.12,188.08,16.09272919]
[1753712816999,0.67,188.11,188.08,16.09272919]
[1753712817176,16.78468397,188.09,188.07,16.09272919]
[1753712817376,16.78468397,188.11,188.08,16.09272919]
[1753712817601,16.78468397,188.14,188.1,16.09272919]
[1753712817792,17.45468397,188.14,188.1,16.09272919]
[1753712817978,0.67,188.14,188.1,16.09272919]
[1753712818182,16.09272919,188.14,188.09,16.09272919]
[1753712818377,47.18,188.16,188.04,26.0]
[1753712818605,16.09272919,188.16,188.11,16.09272919]
[1753712818906,16.09272919,188.15,188.09,16.09272919]
[1753712819489,16.09272919,188.15,188.1,16.09272919]
[1753712820209,0.67,188.14,187.97,0.66]
[1753712820509,16.78468397,188.13,188.04,16.09272919]
[1753712820713,0.67,188.12,188.08,16.09272919]
[1753712820904,0.71,188.16,188.11,16.09272919]
[1753712821222,0.71,188.15,188.11,16.09272919]
[1753712821420,22.11700031,188.18,188.06,5.99740261]
[1753712821619,64.47468397,188.17,188.02,26.0]
[1753712821786,64.47468397,188.17,188.06,16.09272919]
[1753712821787,47.75,188.16,188.06,16.09272919]
[1753712821986,16.78468397,188.15,188.08,16.09272919]
[1753712822186,16.09272919,188.13,188.02,26.68]
[1753712822394,19.30942363,188.18,188.12,16.09272919]
[1753712822692,5.34378841,188.19,188.1,0.68]
[1753712822913,5.34378841,188.19,188.18,16.09272919]
[1753712822914,0.03,188.19,188.18,16.09272919]
[1753712823115,16.12272919,188.19,188.1,0.68]
[1753712823416,5.31519081,188.14,188.07,16.09272919]
[1753712823618,0.71,188.14,188.12,16.09272919]
[1753712823791,0.71,188.18,188.13,16.09272919]
[1753712824115,0.03,188.19,188.16,16.09272919]
[1753712824333,0.03,188.19,188.18,16.09272919]
[1753712824519,0.03,188.19,188.1,0.68]
[1753712824691,0.74,188.19,188.15,16.09272919]
[1753712824896,0.71,188.18,188.1,0.68]
[1753712825119,0.71,188.18,188.16,16.09272919]
[1753712825291,5.34388294,188.19,188.17,16.09272919]
[1753712825493,5.34388294,188.19,188.16,16.09272919]
[1753712825694,5.34388294,188.19,188.09,0.68]
[1753712825889,16.09272919,188.18,188.13,16.09272919]
[1753712826118,16.09272919,188.16,188.1,16.09272919]
[1753712826318,0.71,188.17,188.06,0.68]
[1753712826621,0.71,188.17,188.13,16.09272919]
[1753712826790,34.72105869,188.19,188.02,0.53185831]
[1753712826791,16.78468397,188.15,188.02,0.53185831]
[1753712826996,16.09272919,188.11,188.01,0.68]
[1753712827322,16.78468397,188.15,188.07,16.09272919]
[1753712827323,5.31547334,188.13,188.07,16.09272919]
[1753712827495,0.71,188.15,188.1,16.09272919]
[1753712827697,5.314061,188.18,188.14,16.09272919]
[1753712828001,0.71,188.17,188.06,1.21174518]
[1753712828308,16.09272919,188.16,188.06,0.68]
[1753712828497,0.71,188.15,188.09,16.09272919]
[1753712828698,16.80272919,188.15,188.1,16.09272919]
[1753712828914,18.59921351,188.18,188.03,26.68]
[1753712828915,5.314061,188.18,188.14,16.09272919]
[1753712829198,6.024061,188.18,188.16,16.09272919]
[1753712829413,16.80272919,188.17,188.06,115.4]
[1753712829623,16.09272919,188.14,188.08,16.09272919]
[1753712829903,0.71,188.14,188.1,16.09272919]
[1753712830106,0.71,188.14,188.11,16.09272919]
[1753712830315,16.78468397,188.18,188.12,16.09272919]
[1753712830316,0.71,188.18,188.12,16.09272919]
[1753712830496,0.71,188.18,188.05,0.68]
[1753712830699,0.71,188.18,188.11,16.09272919]
[1753712830931,16.09272919,188.17,188.11,16.09272919]
[1753712831317,18.60119047,188.16,188.11,16.09272919]
[1753712831826,19.31119047,188.16,188.13,16.09272919]
[1753712831997,19.31119047,188.16,188.07,0.68]
[1753712831998,18.60119047,188.16,188.07,0.68]
[1753712832196,18.60119047,188.16,188.13,16.09272919]
[1753712832398,0.03,188.14,188.12,16.09272919]
[1753712833127,0.74,188.14,188.1,16.09272919]
[1753712833309,0.74,188.14,188.01,0.68]
[1753712833310,0.71,188.13,188.01,0.68]
[1753712833511,34.69787484,188.12,188.07,16.09272919]
[1753712833704,19.31514565,188.12,188.0,5.37909538]
[1753712833894,16.09272919,188.1,188.0,0.06]
[1753712834098,16.09272919,188.07,188.02,16.09272919]
[1753712834403,5.3157559,188.12,188.06,16.09272919]
[1753712834615,5.3157559,188.12,188.11,16.09272919]
[1753712834802,5.31549112,188.13,188.11,16.09272919]
[1753712834998,5.31549112,188.13,188.05,0.68]
[1753712835298,21.40822031,188.13,188.07,16.09272919]
[1753712835498,35.40690366,188.13,188.07,16.09272919]
[1753712835694,19.31417447,188.13,188.07,16.09272919]
[1753712835899,35.40690366,188.13,188.08,16.09272919]
[1753712836208,5.31549112,188.13,188.12,16.09272919]
[1753712836396,5.31549112,188.13,188.05,0.68]
[1753712836732,19.31417447,188.13,188.03,26.0]
[1753712836927,16.09272919,188.12,188.07,16.09272919]
[1753712837102,0.71,188.11,188.06,16.09272919]
[1753712837302,34.69690366,188.13,188.08,16.09272919]
[1753712837501,0.71,188.12,188.08,16.09272919]
[1753712837703,16.09272919,188.09,188.0,0.06]
[1753712837912,16.09272919,188.04,188.0,0.06]
[1753712838125,16.09272919,188.05,188.0,16.15272919]
[1753712838430,16.80272919,188.08,188.03,16.09272919]
[1753712838598,16.09272919,188.1,188.04,16.09272919]
[1753712838798,16.80272919,188.11,188.06,16.09272919]
[1753712839024,9.24444123,188.12,188.02,16.09272919]
[1753712839326,16.09272919,188.12,188.02,0.68]
[1753712839508,16.09272919,188.12,188.07,16.09272919]
[1753712839864,5.31576386,188.12,188.08,16.09272919]
[1753712840006,5.31576386,188.12,188.09,16.09272919]
[1753712840316,5.31576386,188.12,188.04,0.68]
[1753712840639,16.09272919,188.05,188.0,0.06]
[1753712840939,16.09272919,188.04,188.0,0.06]
[1753712841308,0.71,188.05,188.0,16.15272919]
[1753712841608,45.18393311,188.12,188.0,0.06]
[1753712841609,16.09272919,188.08,188.0,0.06]
[1753712841830,0.71,188.09,188.03,16.09272919]
[1753712842028,0.71,188.09,188.01,16.09272919]
[1753712842404,16.09272919,188.06,188.01,16.09272919]
[1753712842614,21.41042554,188.06,188.01,16.09272919]
[1753712842816,16.80272919,188.05,188.0,0.06]
[1753712843042,16.09272919,188.03,188.0,0.06]
[1753712843249,16.09272919,188.04,188.0,0.06]
[1753712843452,5.31769635,188.06,188.0,16.15272919]
[1753712843661,5.31718209,188.07,188.02,16.09272919]
[1753712843820,16.09272919,188.07,188.02,0.68]
[1753712844019,6.02692556,188.08,188.03,16.77272919]
[1753712844020,21.40965475,188.08,188.03,16.77272919]
[1753712844312,0.03,188.19,188.07,16.09272919]
[1753712844533,0.03,188.19,188.11,16.09272919]
[1753712844737,16.09272919,188.12,188.06,16.09272919]
[1753712844931,0.28432314,188.15,188.02,16.09272919]
[1753712845117,16.09272919,188.09,188.0,0.06]
[1753712845319,63.17300811,188.16,188.0,0.06]
[1753712845320,16.09272919,188.06,188.0,0.06]
[1753712845524,16.09272919,188.05,188.0,16.15272919]
[1753712845752,16.09272919,188.04,188.0,0.06]
[1753712845951,16.09272919,188.01,188.0,0.06]
[1753712846413,0.71,188.03,188.0,0.06]
[1753712846617,21.4115952,188.01,188.0,0.06]
[1753712846817,22.1215952,188.01,188.0,0.06]
[1753712847442,21.4115952,188.01,188.0,0.06]
[1753712847622,0.71,188.07,188.0,0.06]
[1753712847830,4.25854303,188.01,187.96,0.06]
[1753712848043,4.25854303,188.01,188.0,16.09272919]
[1753712848353,3.40696904,188.01,187.96,0.06]
[1753712848537,19.49969823,188.0,187.96,0.06]
[1753712848723,5.31999787,187.97,187.96,0.06]